[Event "Titled Tuesday Blitz December 20 Early 2022"]
[White "Rostolis, Riccardo"]
[Black "Jensen, Morten Kingo"]
[WhiteFideId "819948"]
[BlackFideId "1435108"]
[WhiteElo "1968"]
[BlackElo "1867"]
[Result "1-0"]
[Round "07"]
[TimeControl "180+2"]
[Date "2022.12.20"]
[WhiteClock "0:00:39"]
[BlackClock "0:00:13"]

1. e4 {[%clk 0:03:00]}  c5 {[%clk 0:02:57]} 2. Nf3 {[%clk 0:03:00]}  e6 {[%clk 0:02:58]} 3. c4 {[%clk 0:02:59]}  Nc6 {[%clk 0:02:56]} 4. d4 {[%clk 0:02:58]}  cxd4 {[%clk 0:02:55]} 5. Nxd4 {[%clk 0:02:59]}  Nf6 {[%clk 0:02:55]} 6. Nc3 {[%clk 0:02:59]}  Bb4 {[%clk 0:02:52]} 7. Nxc6 {[%clk 0:02:54]}  bxc6 {[%clk 0:02:52]} 8. Bd3 {[%clk 0:02:53]}  Qc7 {[%clk 0:02:49]} 9. O-O {[%clk 0:02:52]}  h5 {[%clk 0:02:48]} 10. h3 {[%clk 0:02:32]}  Bc5 {[%clk 0:02:46]} 11. Qf3 {[%clk 0:02:13]}  Rb8 {[%clk 0:02:31]} 12. Na4 {[%clk 0:01:46]}  Bd4 {[%clk 0:02:26]} 13. Be3 {[%clk 0:01:41]}  Be5 {[%clk 0:01:42]} 14. Rab1 {[%clk 0:01:33]}  Ng4 {[%clk 0:01:35]} 15. Rfd1 {[%clk 0:01:14]}  Nxe3 {[%clk 0:01:34]} 16. Qxe3 {[%clk 0:01:11]}  f6 {[%clk 0:01:10]} 17. c5 {[%clk 0:01:11]}  g5 {[%clk 0:01:08]} 18. b3 {[%clk 0:01:09]}  g4 {[%clk 0:00:57]} 19. Nb2 {[%clk 0:01:07]}  Bxb2 {[%clk 0:00:54]} 20. Rxb2 {[%clk 0:01:07]}  Qe5 {[%clk 0:00:54]} 21. Rbd2 {[%clk 0:01:03]}  gxh3 {[%clk 0:00:45]} 22. Qxh3 {[%clk 0:01:00]}  Qxc5 {[%clk 0:00:43]} 23. Bc4 {[%clk 0:00:56]}  Qe5 {[%clk 0:00:34]} 24. Bxe6 {[%clk 0:00:53]}  Ke7 {[%clk 0:00:20]} 25. Bxd7 {[%clk 0:00:51]}  Rd8 {[%clk 0:00:18]} 26. Bxc8 {[%clk 0:00:49]}  Rbxc8 {[%clk 0:00:18]} 27. Rd7+ {[%clk 0:00:49]}  Ke8 {[%clk 0:00:17]} 28. Qd3 {[%clk 0:00:39]}  Rb8 {[%clk 0:00:13]} 29. Rxd8+ {[%clk 0:00:39]} 1-0


[Site "https://www.chess.com"]

[Event "Titled Tuesday Blitz December 20 Early 2022"]
[White "Rud_Makarian"]
[Black "Zahid, Sanatan"]
[BlackFideId "10201963"]
[WhiteElo "2889"]
[BlackElo "1930"]
[Result "0-1"]
[Round "07"]
[TimeControl "180+2"]
[Date "2022.12.20"]
[WhiteClock "0:00:03"]
[BlackClock "0:01:00"]

1. Nf3 {[%clk 0:02:19]}  Nf6 {[%clk 0:02:59]} 2. g3 {[%clk 0:02:19]}  d5 {[%clk 0:03:00]} 3. Bg2 {[%clk 0:02:19]}  Bg4 {[%clk 0:03:00]} 4. Ne5 {[%clk 0:02:16]}  Bf5 {[%clk 0:02:59]} 5. c4 {[%clk 0:02:16]}  c6 {[%clk 0:03:00]} 6. O-O {[%clk 0:02:09]}  Nbd7 {[%clk 0:03:00]} 7. d4 {[%clk 0:02:09]}  e6 {[%clk 0:02:59]} 8. Nc3 {[%clk 0:02:10]}  Nxe5 {[%clk 0:03:00]} 9. dxe5 {[%clk 0:02:10]}  Nd7 {[%clk 0:03:00]} 10. cxd5 {[%clk 0:01:55]}  cxd5 {[%clk 0:03:01]} 11. e4 {[%clk 0:01:49]}  dxe4 {[%clk 0:02:59]} 12. Qa4 {[%clk 0:01:47]}  a6 {[%clk 0:02:48]} 13. Nxe4 {[%clk 0:01:39]}  b5 {[%clk 0:02:46]} 14. Qb3 {[%clk 0:01:40]}  Rc8 {[%clk 0:02:45]} 15. Bg5 {[%clk 0:01:35]}  Qb6 {[%clk 0:02:37]} 16. Rac1 {[%clk 0:01:18]}  Nc5 {[%clk 0:02:37]} 17. Rfd1 {[%clk 0:00:50]}  Bxe4 {[%clk 0:02:18]} 18. Bxe4 {[%clk 0:00:46]}  Be7 {[%clk 0:02:01]} 19. Bxe7 {[%clk 0:00:34]}  Kxe7 {[%clk 0:02:01]} 20. Qe3 {[%clk 0:00:32]}  h6 {[%clk 0:01:54]} 21. Rd6 {[%clk 0:00:26]}  Qa5 {[%clk 0:01:33]} 22. Rxc5 {[%clk 0:00:12]}  Rxc5 {[%clk 0:01:32]} 23. Qxc5 {[%clk 0:00:13]}  Qe1+ {[%clk 0:01:33]} 24. Kg2 {[%clk 0:00:12]}  Qxe4+ {[%clk 0:01:34]} 25. Kf1 {[%clk 0:00:08]}  Qc4+ {[%clk 0:01:30]} 26. Qxc4 {[%clk 0:00:09]}  bxc4 {[%clk 0:01:31]} 27. Rxa6 {[%clk 0:00:07]}  Rb8 {[%clk 0:01:31]} 28. Ra7+ {[%clk 0:00:08]}  Ke8 {[%clk 0:01:30]} 29. Rc7 {[%clk 0:00:04]}  Rxb2 {[%clk 0:01:31]} 30. Rxc4 {[%clk 0:00:03]}  Rxa2 {[%clk 0:01:31]} 31. Kg2 {[%clk 0:00:03]}  g6 {[%clk 0:01:30]} 32. h4 {[%clk 0:00:03]}  h5 {[%clk 0:01:31]} 33. Kf3 {[%clk 0:00:03]}  Kf8 {[%clk 0:01:30]} 34. Rc8+ {[%clk 0:00:03]}  Kg7 {[%clk 0:01:30]} 35. Rc5 {[%clk 0:00:03]}  Ra3+ {[%clk 0:01:30]} 36. Kg2 {[%clk 0:00:04]}  Rb3 {[%clk 0:01:30]} 37. f4 {[%clk 0:00:04]}  Rb7 {[%clk 0:01:27]} 38. Rc6 {[%clk 0:00:05]}  Kf8 {[%clk 0:01:27]} 39. Kf3 {[%clk 0:00:05]}  Ke7 {[%clk 0:01:28]} 40. Rc3 {[%clk 0:00:05]}  Kd7 {[%clk 0:01:27]} 41. g4 {[%clk 0:00:05]}  hxg4+ {[%clk 0:01:25]} 42. Kxg4 {[%clk 0:00:06]}  Ke7 {[%clk 0:01:26]} 43. Kg5 {[%clk 0:00:06]}  Rd7 {[%clk 0:01:25]} 44. Rb3 {[%clk 0:00:04]}  Ra7 {[%clk 0:01:25]} 45. Rc3 {[%clk 0:00:05]}  Ra4 {[%clk 0:01:21]} 46. Rc7+ {[%clk 0:00:05]}  Kf8 {[%clk 0:01:21]} 47. h5 {[%clk 0:00:04]}  gxh5 {[%clk 0:01:22]} 48. f5 {[%clk 0:00:04]}  exf5 {[%clk 0:01:20]} 49. Kxf5 {[%clk 0:00:04]}  Ra5 {[%clk 0:01:11]} 50. Kf6 {[%clk 0:00:04]}  Ra6+ {[%clk 0:01:11]} 51. Kf5 {[%clk 0:00:05]}  Re6 {[%clk 0:01:07]} 52. Rc3 {[%clk 0:00:05]}  Kg7 {[%clk 0:01:07]} 53. Rh3 {[%clk 0:00:04]}  Kh6 {[%clk 0:01:04]} 54. Rh1 {[%clk 0:00:05]}  Ra6 {[%clk 0:01:04]} 55. Rh2 {[%clk 0:00:05]}  Ra4 {[%clk 0:01:03]} 56. Rf2 {[%clk 0:00:03]}  h4 {[%clk 0:01:01]} 57. Kf6 {[%clk 0:00:04]}  Ra7 {[%clk 0:01:02]} 58. Rf4 {[%clk 0:00:03]}  Kh5 {[%clk 0:01:01]} 59. Rf5+ {[%clk 0:00:03]}  Kg4 {[%clk 0:01:02]} 60. Rg5+ {[%clk 0:00:03]}  Kf4 {[%clk 0:01:02]} 61. Rg7 {[%clk 0:00:03]}  Ra6+ {[%clk 0:00:59]} 62. Kxf7 {[%clk 0:00:03]}  Ra7+ {[%clk 0:01:00]} 0-1


[Site "https://www.chess.com"]

[Event "Titled Tuesday Blitz December 20 Early 2022"]
[White "SaiHanThiha"]
[Black "Flawless_Fighter"]
[WhiteElo "2429"]
[BlackElo "2622"]
[Result "0-1"]
[Round "07"]
[TimeControl "180+2"]
[Date "2022.12.20"]
[WhiteClock "0:00:22"]
[BlackClock "0:01:02"]

1. d4 {[%clk 0:03:00]}  Nf6 {[%clk 0:02:59]} 2. c4 {[%clk 0:03:01]}  e6 {[%clk 0:02:59]} 3. Nf3 {[%clk 0:03:01]}  d5 {[%clk 0:02:59]} 4. Nc3 {[%clk 0:03:02]}  c5 {[%clk 0:02:58]} 5. cxd5 {[%clk 0:03:01]}  Nxd5 {[%clk 0:02:59]} 6. g3 {[%clk 0:03:01]}  Nxc3 {[%clk 0:02:54]} 7. bxc3 {[%clk 0:03:02]}  cxd4 {[%clk 0:02:55]} 8. Nxd4 {[%clk 0:02:36]}  e5 {[%clk 0:02:43]} 9. Nf3 {[%clk 0:02:12]}  Qxd1+ {[%clk 0:02:41]} 10. Kxd1 {[%clk 0:02:13]}  Nc6 {[%clk 0:02:41]} 11. Bg2 {[%clk 0:02:13]}  Bc5 {[%clk 0:02:40]} 12. e3 {[%clk 0:02:09]}  Bg4 {[%clk 0:02:37]} 13. Kc2 {[%clk 0:02:04]}  Bf5+ {[%clk 0:02:29]} 14. Kb2 {[%clk 0:01:59]}  f6 {[%clk 0:02:26]} 15. Nd2 {[%clk 0:01:57]}  Na5 {[%clk 0:02:22]} 16. a4 {[%clk 0:01:47]}  Rd8 {[%clk 0:02:15]} 17. Bf1 {[%clk 0:01:45]}  Be6 {[%clk 0:02:07]} 18. Kc2 {[%clk 0:01:37]}  Kf7 {[%clk 0:01:58]} 19. Ba3 {[%clk 0:01:37]}  Bxa3 {[%clk 0:01:57]} 20. Rxa3 {[%clk 0:01:37]}  b6 {[%clk 0:01:51]} 21. Bb5 {[%clk 0:01:25]}  Rd6 {[%clk 0:01:39]} 22. Raa1 {[%clk 0:00:32]}  Rhd8 {[%clk 0:01:35]} 23. Rad1 {[%clk 0:00:32]}  Bg4 {[%clk 0:01:02]} 24. f3 {[%clk 0:00:30]}  Bf5+ {[%clk 0:01:02]} 25. e4 {[%clk 0:00:31]}  Be6 {[%clk 0:01:03]} 26. Kc1 {[%clk 0:00:30]}  Rxd2 {[%clk 0:01:02]} 27. Rxd2 {[%clk 0:00:22]}  Nb3+ {[%clk 0:01:02]} 0-1


[Site "https://www.chess.com"]

[Event "Titled Tuesday Blitz December 20 Early 2022"]
[White "Salomez, Maxime"]
[Black "Abd El Fatah, Reda Fadel"]
[WhiteFideId "652079600"]
[BlackFideId "10600752"]
[WhiteElo "1359"]
[BlackElo "2134"]
[Result "0-1"]
[Round "07"]
[TimeControl "180+2"]
[Date "2022.12.20"]
[WhiteClock "0:00:03"]
[BlackClock "0:00:39"]

1. e4 {[%clk 0:03:00]}  e5 {[%clk 0:03:00]} 2. Nf3 {[%clk 0:02:59]}  d6 {[%clk 0:03:01]} 3. d4 {[%clk 0:02:59]}  Bg4 {[%clk 0:03:01]} 4. dxe5 {[%clk 0:02:58]}  Nd7 {[%clk 0:03:02]} 5. exd6 {[%clk 0:02:53]}  Bxd6 {[%clk 0:03:03]} 6. h3 {[%clk 0:02:50]}  Bh5 {[%clk 0:03:03]} 7. Nc3 {[%clk 0:02:44]}  Ngf6 {[%clk 0:03:03]} 8. Bg5 {[%clk 0:02:42]}  Qe7 {[%clk 0:03:03]} 9. Qe2 {[%clk 0:02:31]}  O-O-O {[%clk 0:03:00]} 10. O-O-O {[%clk 0:02:31]}  h6 {[%clk 0:02:59]} 11. Bxf6 {[%clk 0:02:24]}  Nxf6 {[%clk 0:02:50]} 12. g4 {[%clk 0:02:23]}  Bf4+ {[%clk 0:02:49]} 13. Kb1 {[%clk 0:02:19]}  Rxd1+ {[%clk 0:02:47]} 14. Nxd1 {[%clk 0:02:13]}  Bg6 {[%clk 0:02:46]} 15. Nc3 {[%clk 0:01:29]}  Nxe4 {[%clk 0:02:42]} 16. Nxe4 {[%clk 0:01:26]}  Qxe4 {[%clk 0:02:32]} 17. Qxe4 {[%clk 0:01:23]}  Bxe4 {[%clk 0:02:33]} 18. Bg2 {[%clk 0:01:24]}  Rd8 {[%clk 0:02:27]} 19. Re1 {[%clk 0:01:22]}  Bc6 {[%clk 0:02:26]} 20. a3 {[%clk 0:01:14]}  a5 {[%clk 0:02:25]} 21. Re7 {[%clk 0:01:06]}  g5 {[%clk 0:02:15]} 22. Re1 {[%clk 0:01:01]}  a4 {[%clk 0:02:10]} 23. c3 {[%clk 0:00:46]}  f6 {[%clk 0:01:47]} 24. Bh1 {[%clk 0:00:46]}  Rd3 {[%clk 0:01:02]} 25. Nd4 {[%clk 0:00:42]}  Bxh1 {[%clk 0:01:01]} 26. Rxh1 {[%clk 0:00:42]}  c5 {[%clk 0:00:58]} 27. Nf5 {[%clk 0:00:29]}  Rf3 {[%clk 0:00:58]} 28. Nxh6 {[%clk 0:00:24]}  Rxf2 {[%clk 0:00:57]} 29. Nf5 {[%clk 0:00:23]}  b5 {[%clk 0:00:55]} 30. Re1 {[%clk 0:00:10]}  Be5 {[%clk 0:00:55]} 31. Rd1 {[%clk 0:00:09]}  b4 {[%clk 0:00:54]} 32. axb4 {[%clk 0:00:08]}  cxb4 {[%clk 0:00:55]} 33. Ne7+ {[%clk 0:00:07]}  Kb7 {[%clk 0:00:51]} 34. Nd5 {[%clk 0:00:07]}  bxc3 {[%clk 0:00:42]} 35. Nxc3 {[%clk 0:00:06]}  a3 {[%clk 0:00:42]} 36. Ne4 {[%clk 0:00:04]}  Rxb2+ {[%clk 0:00:41]} 37. Kc1 {[%clk 0:00:03]}  a2 {[%clk 0:00:39]} 0-1


[Site "https://www.chess.com"]

[Event "Titled Tuesday Blitz December 20 Early 2022"]
[White "Schless, Sebastian"]
[Black "OparinGrigoriy"]
[WhiteFideId "4697987"]
[WhiteElo "2056"]
[BlackElo "3013"]
[Result "1-0"]
[Round "07"]
[TimeControl "180+2"]
[Date "2022.12.20"]
[WhiteClock "0:00:56"]
[BlackClock "0:00:04"]

1. d4 {[%clk 0:02:59]}  Nf6 {[%clk 0:02:57]} 2. Nf3 {[%clk 0:02:59]}  d5 {[%clk 0:02:57]} 3. Bg5 {[%clk 0:02:59]}  c5 {[%clk 0:02:57]} 4. e3 {[%clk 0:02:56]}  cxd4 {[%clk 0:02:54]} 5. exd4 {[%clk 0:02:56]}  Qb6 {[%clk 0:02:55]} 6. Nbd2 {[%clk 0:02:55]}  h6 {[%clk 0:02:53]} 7. Bxf6 {[%clk 0:02:48]}  exf6 {[%clk 0:02:52]} 8. c3 {[%clk 0:02:42]}  Bd6 {[%clk 0:02:50]} 9. Qb3 {[%clk 0:02:40]}  Be6 {[%clk 0:02:45]} 10. Bb5+ {[%clk 0:02:40]}  Nc6 {[%clk 0:02:43]} 11. O-O {[%clk 0:02:39]}  O-O {[%clk 0:02:43]} 12. Rfe1 {[%clk 0:02:39]}  Qc7 {[%clk 0:02:38]} 13. Nf1 {[%clk 0:02:34]}  Rad8 {[%clk 0:02:24]} 14. Ne3 {[%clk 0:02:27]}  f5 {[%clk 0:02:23]} 15. Qc2 {[%clk 0:02:17]}  g6 {[%clk 0:02:15]} 16. Re2 {[%clk 0:02:11]}  a6 {[%clk 0:02:09]} 17. Ba4 {[%clk 0:02:10]}  Kg7 {[%clk 0:01:46]} 18. Rae1 {[%clk 0:02:08]}  Ne7 {[%clk 0:01:45]} 19. Nf1 {[%clk 0:01:52]}  Ng8 {[%clk 0:01:42]} 20. Rxe6 {[%clk 0:01:37]}  fxe6 {[%clk 0:01:42]} 21. Rxe6 {[%clk 0:01:37]}  Nf6 {[%clk 0:01:40]} 22. Bb3 {[%clk 0:01:34]}  Rfe8 {[%clk 0:01:37]} 23. Rxe8 {[%clk 0:01:32]}  Rxe8 {[%clk 0:01:37]} 24. Ne3 {[%clk 0:01:32]}  Qc6 {[%clk 0:01:29]} 25. g3 {[%clk 0:01:26]}  f4 {[%clk 0:01:20]} 26. Nh4 {[%clk 0:01:26]}  Re4 {[%clk 0:00:41]} 27. Bxd5 {[%clk 0:01:25]}  fxe3 {[%clk 0:00:42]} 28. Bxc6 {[%clk 0:01:24]}  e2 {[%clk 0:00:42]} 29. Ng2 {[%clk 0:01:18]}  e1=Q+ {[%clk 0:00:42]} 30. Nxe1 {[%clk 0:01:18]}  Rxe1+ {[%clk 0:00:43]} 31. Kg2 {[%clk 0:01:19]}  bxc6 {[%clk 0:00:44]} 32. Qa4 {[%clk 0:01:19]}  Re2 {[%clk 0:00:26]} 33. Qxa6 {[%clk 0:01:12]}  Rxb2 {[%clk 0:00:23]} 34. Qa7+ {[%clk 0:01:07]}  Kf8 {[%clk 0:00:17]} 35. Qa8+ {[%clk 0:01:05]}  Kg7 {[%clk 0:00:17]} 36. Qxc6 {[%clk 0:01:04]}  Be7 {[%clk 0:00:18]} 37. a4 {[%clk 0:00:59]}  Ng4 {[%clk 0:00:17]} 38. Qe6 {[%clk 0:00:57]}  Rxf2+ {[%clk 0:00:03]} 39. Kg1 {[%clk 0:00:57]}  h5 {[%clk 0:00:04]} 40. Qxe7+ {[%clk 0:00:57]}  Kh6 {[%clk 0:00:04]} 41. h3 {[%clk 0:00:56]} 1-0


[Site "https://www.chess.com"]

[Event "Titled Tuesday Blitz December 20 Early 2022"]
[White "Shockerlover"]
[Black "FMOlexandrProhorov"]
[WhiteElo "1948"]
[BlackElo "2232"]
[Result "1-0"]
[Round "07"]
[TimeControl "180+2"]
[Date "2022.12.20"]
[WhiteClock "0:00:32"]
[BlackClock "0:00:02"]

1. d4 {[%clk 0:02:23]}  e6 {[%clk 0:00:29]} 2. Nf3 {[%clk 0:02:24]}  f5 {[%clk 0:00:28]} 3. c4 {[%clk 0:02:25]}  Nf6 {[%clk 0:00:27]} 4. Nc3 {[%clk 0:02:01]}  c6 {[%clk 0:00:26]} 5. g3 {[%clk 0:01:59]}  d5 {[%clk 0:00:26]} 6. Bg2 {[%clk 0:01:58]}  Bd6 {[%clk 0:00:27]} 7. O-O {[%clk 0:01:58]}  O-O {[%clk 0:00:26]} 8. Qc2 {[%clk 0:01:57]}  Nbd7 {[%clk 0:00:24]} 9. b3 {[%clk 0:01:54]}  Ne4 {[%clk 0:00:24]} 10. Bb2 {[%clk 0:01:54]}  Ndf6 {[%clk 0:00:24]} 11. Rad1 {[%clk 0:01:51]}  Bd7 {[%clk 0:00:23]} 12. Ne5 {[%clk 0:01:47]}  Qe7 {[%clk 0:00:23]} 13. f3 {[%clk 0:01:46]}  Nxc3 {[%clk 0:00:22]} 14. Bxc3 {[%clk 0:01:45]}  b6 {[%clk 0:00:18]} 15. e4 {[%clk 0:01:44]}  fxe4 {[%clk 0:00:18]} 16. fxe4 {[%clk 0:01:44]}  dxe4 {[%clk 0:00:16]} 17. Bxe4 {[%clk 0:01:41]}  Rad8 {[%clk 0:00:08]} 18. Bg2 {[%clk 0:01:37]}  Bxe5 {[%clk 0:00:07]} 19. dxe5 {[%clk 0:01:37]}  Ng4 {[%clk 0:00:08]} 20. Rd6 {[%clk 0:01:29]}  Rxf1+ {[%clk 0:00:07]} 21. Bxf1 {[%clk 0:01:26]}  Rf8 {[%clk 0:00:06]} 22. Qe2 {[%clk 0:01:21]}  Qg5 {[%clk 0:00:02]} 23. Rxd7 {[%clk 0:00:52]}  Rf2 {[%clk 0:00:02]} 24. Qd3 {[%clk 0:00:32]} 1-0


[Site "https://www.chess.com"]

[Event "Titled Tuesday Blitz December 20 Early 2022"]
[White "Shuvalov, Evgenij"]
[Black "Emily_Dawn"]
[WhiteFideId "4187237"]
[WhiteElo "2038"]
[BlackElo "1878"]
[Result "1-0"]
[Round "07"]
[TimeControl "180+2"]
[Date "2022.12.20"]
[WhiteClock "0:01:09"]
[BlackClock "0:00:17"]

1. d4 {[%clk 0:02:54]}  Nf6 {[%clk 0:02:58]} 2. c4 {[%clk 0:02:47]}  e6 {[%clk 0:02:57]} 3. Nc3 {[%clk 0:02:46]}  Bb4 {[%clk 0:02:57]} 4. a3 {[%clk 0:02:46]}  Bxc3+ {[%clk 0:02:56]} 5. bxc3 {[%clk 0:02:47]}  b6 {[%clk 0:02:55]} 6. f3 {[%clk 0:02:46]}  Ba6 {[%clk 0:02:48]} 7. e4 {[%clk 0:02:45]}  d6 {[%clk 0:02:43]} 8. Bd3 {[%clk 0:02:43]}  O-O {[%clk 0:02:40]} 9. f4 {[%clk 0:02:40]}  Nc6 {[%clk 0:02:39]} 10. e5 {[%clk 0:02:36]}  Nd7 {[%clk 0:02:30]} 11. Nf3 {[%clk 0:02:30]}  Na5 {[%clk 0:02:27]} 12. Qe2 {[%clk 0:02:16]}  Qe7 {[%clk 0:02:13]} 13. Be3 {[%clk 0:01:58]}  h6 {[%clk 0:02:09]} 14. g4 {[%clk 0:01:55]}  f6 {[%clk 0:01:56]} 15. O-O {[%clk 0:01:49]}  c5 {[%clk 0:01:45]} 16. Nh4 {[%clk 0:01:47]}  Rfc8 {[%clk 0:01:28]} 17. Ng6 {[%clk 0:01:42]}  Qe8 {[%clk 0:01:22]} 18. exd6 {[%clk 0:01:42]}  cxd4 {[%clk 0:01:12]} 19. cxd4 {[%clk 0:01:38]}  Bxc4 {[%clk 0:00:58]} 20. Ne7+ {[%clk 0:01:37]}  Kh8 {[%clk 0:00:56]} 21. Nxc8 {[%clk 0:01:36]}  Rxc8 {[%clk 0:00:56]} 22. Rac1 {[%clk 0:01:33]}  Bxd3 {[%clk 0:00:48]} 23. Qxd3 {[%clk 0:01:34]}  Nb7 {[%clk 0:00:48]} 24. Rc7 {[%clk 0:01:28]}  Nxd6 {[%clk 0:00:46]} 25. Rfc1 {[%clk 0:01:28]}  Rxc7 {[%clk 0:00:45]} 26. Rxc7 {[%clk 0:01:27]}  e5 {[%clk 0:00:35]} 27. dxe5 {[%clk 0:01:23]}  fxe5 {[%clk 0:00:35]} 28. Qxd6 {[%clk 0:01:22]}  Nf6 {[%clk 0:00:20]} 29. Qxe5 {[%clk 0:01:14]}  Qa4 {[%clk 0:00:19]} 30. Rc8+ {[%clk 0:01:12]}  Kh7 {[%clk 0:00:18]} 31. Qf5+ {[%clk 0:01:11]}  g6 {[%clk 0:00:19]} 32. Rc7+ {[%clk 0:01:11]}  Kg8 {[%clk 0:00:18]} 33. Qxg6+ {[%clk 0:01:09]}  Kh8 {[%clk 0:00:17]} 34. Qg7# {[%clk 0:01:09]} 1-0


[Site "https://www.chess.com"]

[Event "Titled Tuesday Blitz December 20 Early 2022"]
[White "Sokolov, Ivan"]
[Black "Garcia Brion, Eduardo"]
[WhiteFideId "14400030"]
[BlackFideId "2223864"]
[WhiteElo "2590"]
[BlackElo "2175"]
[Result "1-0"]
[Round "07"]
[TimeControl "180+2"]
[Date "2022.12.20"]
[WhiteClock "0:00:08"]
[BlackClock "0:00:02"]

1. b3 {[%clk 0:03:00]}  e5 {[%clk 0:02:59]} 2. Bb2 {[%clk 0:03:01]}  Nc6 {[%clk 0:03:00]} 3. e3 {[%clk 0:03:01]}  d5 {[%clk 0:03:00]} 4. Nf3 {[%clk 0:03:01]}  Bd6 {[%clk 0:02:58]} 5. d4 {[%clk 0:03:01]}  e4 {[%clk 0:02:58]} 6. Nfd2 {[%clk 0:03:01]}  Nce7 {[%clk 0:02:51]} 7. c4 {[%clk 0:02:48]}  c6 {[%clk 0:02:52]} 8. f3 {[%clk 0:02:48]}  f5 {[%clk 0:02:50]} 9. f4 {[%clk 0:02:44]}  Nf6 {[%clk 0:02:49]} 10. Be2 {[%clk 0:02:43]}  O-O {[%clk 0:02:48]} 11. h3 {[%clk 0:02:42]}  Be6 {[%clk 0:02:25]} 12. Nc3 {[%clk 0:02:40]}  a6 {[%clk 0:02:24]} 13. c5 {[%clk 0:02:35]}  Bc7 {[%clk 0:02:24]} 14. Na4 {[%clk 0:02:36]}  h6 {[%clk 0:02:06]} 15. Qc2 {[%clk 0:02:35]}  g5 {[%clk 0:01:35]} 16. g3 {[%clk 0:02:29]}  gxf4 {[%clk 0:01:29]} 17. exf4 {[%clk 0:02:19]}  Kh7 {[%clk 0:01:27]} 18. Nf1 {[%clk 0:02:19]}  Rg8 {[%clk 0:01:22]} 19. Bc1 {[%clk 0:02:03]}  Ba5+ {[%clk 0:01:13]} 20. Kf2 {[%clk 0:01:50]}  e3+ {[%clk 0:00:34]} 21. Bxe3 {[%clk 0:01:49]}  Ne4+ {[%clk 0:00:34]} 22. Kg2 {[%clk 0:01:48]}  Ng6 {[%clk 0:00:35]} 23. Kh2 {[%clk 0:01:39]}  Qf6 {[%clk 0:00:32]} 24. Bf3 {[%clk 0:01:31]}  Rg7 {[%clk 0:00:24]} 25. Nb2 {[%clk 0:01:05]}  Rag8 {[%clk 0:00:23]} 26. Nd3 {[%clk 0:00:53]}  Nxg3 {[%clk 0:00:09]} 27. Nxg3 {[%clk 0:00:43]}  Nh4 {[%clk 0:00:09]} 28. Qf2 {[%clk 0:00:38]}  Rxg3 {[%clk 0:00:09]} 29. Qxg3 {[%clk 0:00:39]}  Rxg3 {[%clk 0:00:09]} 30. Kxg3 {[%clk 0:00:40]}  Nxf3 {[%clk 0:00:09]} 31. Kxf3 {[%clk 0:00:41]}  Bc3 {[%clk 0:00:09]} 32. Ne5 {[%clk 0:00:28]}  Bxa1 {[%clk 0:00:07]} 33. Rxa1 {[%clk 0:00:29]}  Bf7 {[%clk 0:00:07]} 34. Rg1 {[%clk 0:00:27]}  Bh5+ {[%clk 0:00:08]} 35. Kf2 {[%clk 0:00:28]}  Qh4+ {[%clk 0:00:08]} 36. Rg3 {[%clk 0:00:28]}  a5 {[%clk 0:00:05]} 37. Bd2 {[%clk 0:00:26]}  Be8 {[%clk 0:00:05]} 38. Nf3 {[%clk 0:00:23]}  Qe7 {[%clk 0:00:03]} 39. Ne5 {[%clk 0:00:24]}  a4 {[%clk 0:00:03]} 40. bxa4 {[%clk 0:00:22]}  Bh5 {[%clk 0:00:04]} 41. Kg2 {[%clk 0:00:20]}  Bd1 {[%clk 0:00:03]} 42. a5 {[%clk 0:00:20]}  Bc2 {[%clk 0:00:04]} 43. Kh2 {[%clk 0:00:16]}  Be4 {[%clk 0:00:05]} 44. Be1 {[%clk 0:00:14]}  Qf8 {[%clk 0:00:03]} 45. Rb3 {[%clk 0:00:13]}  Qg7 {[%clk 0:00:02]} 46. Bg3 {[%clk 0:00:14]}  Qe7 {[%clk 0:00:01]} 47. Rb6 {[%clk 0:00:14]}  Qc7 {[%clk 0:00:02]} 48. a3 {[%clk 0:00:12]}  Qe7 {[%clk 0:00:02]} 49. a6 {[%clk 0:00:08]} 1-0


[Site "https://www.chess.com"]

[Event "Titled Tuesday Blitz December 20 Early 2022"]
[White "Sunny_Star"]
[Black "Nenezic, Marko"]
[BlackFideId "912123"]
[WhiteElo "2241"]
[BlackElo "2514"]
[Result "0-1"]
[Round "07"]
[TimeControl "180+2"]
[Date "2022.12.20"]
[WhiteClock "0:00:01"]
[BlackClock "0:00:13"]

1. e4 {[%clk 0:02:54]}  e6 {[%clk 0:02:56]} 2. d3 {[%clk 0:02:47]}  d5 {[%clk 0:02:56]} 3. Nc3 {[%clk 0:02:47]}  Nf6 {[%clk 0:02:49]} 4. e5 {[%clk 0:02:42]}  Nfd7 {[%clk 0:02:49]} 5. Qe2 {[%clk 0:02:40]}  c5 {[%clk 0:02:48]} 6. f4 {[%clk 0:02:38]}  Nc6 {[%clk 0:02:48]} 7. Nf3 {[%clk 0:02:37]}  b5 {[%clk 0:02:31]} 8. g3 {[%clk 0:02:27]}  b4 {[%clk 0:02:28]} 9. Nd1 {[%clk 0:02:26]}  a5 {[%clk 0:02:28]} 10. Bh3 {[%clk 0:02:22]}  g6 {[%clk 0:02:26]} 11. O-O {[%clk 0:02:21]}  Ba6 {[%clk 0:02:21]} 12. Nf2 {[%clk 0:02:17]}  c4 {[%clk 0:02:11]} 13. Kh1 {[%clk 0:02:09]}  Be7 {[%clk 0:01:45]} 14. Be3 {[%clk 0:01:47]}  a4 {[%clk 0:01:41]} 15. b3 {[%clk 0:01:27]}  Qa5 {[%clk 0:01:32]} 16. bxc4 {[%clk 0:01:13]}  dxc4 {[%clk 0:01:32]} 17. dxc4 {[%clk 0:01:13]}  Nb6 {[%clk 0:01:15]} 18. Nd2 {[%clk 0:01:05]}  O-O {[%clk 0:01:10]} 19. Bg2 {[%clk 0:01:03]}  Rac8 {[%clk 0:01:08]} 20. Nfe4 {[%clk 0:00:59]}  Nxc4 {[%clk 0:00:36]} 21. Nxc4 {[%clk 0:00:55]}  Qb5 {[%clk 0:00:36]} 22. Ned2 {[%clk 0:00:24]}  Na5 {[%clk 0:00:35]} 23. f5 {[%clk 0:00:09]}  exf5 {[%clk 0:00:32]} 24. Rf4 {[%clk 0:00:07]}  Nxc4 {[%clk 0:00:29]} 25. Nxc4 {[%clk 0:00:06]}  Rxc4 {[%clk 0:00:29]} 26. Rxc4 {[%clk 0:00:06]}  Qxc4 {[%clk 0:00:29]} 27. Qxc4 {[%clk 0:00:06]}  Bxc4 {[%clk 0:00:29]} 28. Bd4 {[%clk 0:00:05]}  Rd8 {[%clk 0:00:27]} 29. c3 {[%clk 0:00:05]}  b3 {[%clk 0:00:24]} 30. axb3 {[%clk 0:00:04]}  axb3 {[%clk 0:00:20]} 31. Bf1 {[%clk 0:00:02]}  Bxf1 {[%clk 0:00:18]} 32. Rxf1 {[%clk 0:00:01]}  Rb8 {[%clk 0:00:14]} 33. Rb1 {[%clk 0:00:02]}  Kf8 {[%clk 0:00:13]} 34. c4 {[%clk 0:00:01]}  Ke8 {[%clk 0:00:13]} 35. c5 {[%clk 0:00:01]}  Kd7 {[%clk 0:00:13]} 0-1


[Site "https://www.chess.com"]